fUST/lending_fUST_20240501
["ID","MTS","AMOUNT","RATE_DAILY","PERIOD"]
[325169521,1714547444030,-500.0,0.00071231,120]
[325169523,1714547444039,-500.0,0.00071231,120]
[325169528,1714547444048,-500.0,0.00071231,120]
[325169530,1714547444058,-500.0,0.00071231,120]
[325169533,1714547444069,-442.54,0.00071231,120]
[325169536,1714547444079,-999.0,0.00071231,120]
[325169539,1714547444088,-999.0,0.00071231,120]
[325169541,1714547444098,-999.0,0.00071231,120]
[325169544,1714547444107,-999.0,0.00071231,120]
[325169547,1714547444117,-999.0,0.00071231,120]
[325169550,1714547444126,-1299.03,0.00071231,120]
[325169553,1714547444136,-154.84935434,0.00071232,7]
[325169555,1714547444145,-467.12025399,0.00071232,120]
[325169558,1714547444154,-500.0,0.00071232,120]
[325169561,1714547444164,-500.0,0.00071232,120]
[325169564,1714547444174,-500.0,0.00071232,120]
[325169566,1714547444187,-500.0,0.00071232,120]
[325169568,1714547444197,-500.0,0.00071232,120]
[325169570,1714547444206,-500.0,0.00071232,120]
[325169572,1714547444216,-500.0,0.00071232,120]
[325169574,1714547444226,-500.0,0.00071232,120]
[325169575,1714547444236,-500.0,0.00071232,120]
[325169576,1714547444246,-500.0,0.00071232,120]
[325169578,1714547444256,-500.0,0.00071232,120]
[325169580,1714547444268,-340.58819641,0.00071232,120]
[325169582,1714547444278,-500.0,0.00071232,120]
[325169584,1714547444288,-500.0,0.00071232,120]
[325169586,1714547444297,-500.0,0.00071232,120]
[325169588,1714547444307,-500.0,0.00071232,120]
[325169600,1714547444416,-500.0,0.00071232,120]
[325169602,1714547444427,-500.0,0.00071232,120]
[325169604,1714547444447,-500.0,0.00071232,120]
[325169607,1714547444458,-743.3,0.00071232,2]
[325169609,1714547444469,-405.81284681,0.00071232,120]
[325169613,1714547444484,-503.76739879,0.00071232,120]
[325169615,1714547444496,-514.87038657,0.00071232,120]
[325169618,1714547444507,-241.33462806,0.00071232,120]
[325169622,1714547444518,-155.5314617,0.00071232,120]
[325169626,1714547444529,-500.0,0.00071232,120]
[325169630,1714547444540,-500.0,0.00071232,120]
[325169634,1714547444550,-500.0,0.00071232,120]
[325169638,1714547444560,-500.0,0.00071232,3]
[325169642,1714547444570,-500.0,0.00071232,120]
[325169646,1714547444579,-500.0,0.00071232,120]
[325169650,1714547444590,-500.0,0.00071232,120]
[325169654,1714547444602,-1774.17,0.00071232,120]
[325169657,1714547444611,-500.0,0.00071232,120]
[325169660,1714547444621,-500.0,0.00071232,120]
[325169662,1714547444630,-272.30821333,0.00071232,120]
[325169667,1714547444642,-500.0,0.00071232,120]
[325169670,1714547444652,-1040.38,0.00071232,120]
[325169674,1714547444661,-1990.43634124,0.00071232,120]
[325169678,1714547444670,-500.0,0.00071232,120]
[325169682,1714547444679,-500.0,0.00071232,120]
[325169686,1714547444695,-500.0,0.00071232,120]
[325169690,1714547444704,-500.0,0.00071232,120]
[325169694,1714547444714,-500.0,0.00071232,120]
[325169698,1714547444723,-500.0,0.00071232,120]
[325169702,1714547444733,-500.0,0.00071232,120]
[325169706,1714547444742,-500.0,0.00071232,120]
[325169710,1714547444752,-500.0,0.00071232,120]
[325169714,1714547444761,-500.0,0.00071232,120]
[325169718,1714547444771,-1719.12,0.00071232,120]
[325169721,1714547444785,-1653.85,0.00071232,120]
[325169724,1714547444796,-500.0,0.00071232,120]
[325169727,1714547444806,-500.0,0.00071232,120]
[325169731,1714547444817,-500.0,0.00071232,120]
[325169735,1714547444827,-500.0,0.00071232,120]
[325169739,1714547444838,-500.0,0.00071232,120]
[325169743,1714547444848,-500.0,0.00071232,120]
[325169747,1714547444858,-500.0,0.00071232,120]
[325169750,1714547444867,-500.0,0.00071232,120]
[325169754,1714547444877,-500.0,0.00071232,120]
[325169758,1714547444887,-500.0,0.00071232,120]
[325169761,1714547444896,-500.0,0.00071232,120]
[325169766,1714547444906,-1951.86,0.00071232,120]
[325169770,1714547444915,-1364.58,0.00071232,120]
[325169774,1714547444925,-1126.32,0.00071232,120]
[325169778,1714547444939,-583.53,0.00071232,120]
[325169781,1714547444948,-2851.46,0.00071232,2]
[325169785,1714547444957,-559.07,0.00071232,120]
[325169789,1714547444966,-2762.94,0.00071232,120]
[325169792,1714547444976,-500.0,0.00071232,120]
[325169795,1714547444986,-500.0,0.00071232,120]
[325169798,1714547444995,-500.0,0.00071232,120]
[325169802,1714547445006,-500.0,0.00071232,120]
[325169805,1714547445015,-1809.97,0.00071232,120]
[325169808,1714547445025,-500.0,0.00071232,120]
[325169811,1714547445035,-500.0,0.00071232,120]
[325169814,1714547445045,-500.0,0.00071232,120]
[325169817,1714547445055,-500.0,0.00071232,120]
[325169820,1714547445064,-500.0,0.00071232,120]
[325169823,1714547445074,-500.0,0.00071232,120]
[325169826,1714547445084,-1643.62,0.00071232,120]
[325169829,1714547445095,-500.0,0.00071232,120]
[325169832,1714547445105,-500.0,0.00071232,120]
[325169835,1714547445115,-977.05,0.00071232,120]
[325169838,1714547445124,-500.0,0.00071232,120]
[325169841,1714547445133,-876.53,0.00071232,120]
[325169844,1714547445142,-3386.05,0.00071232,120]
[325169846,1714547445151,-500.0,0.00071232,120]
[325169849,1714547445161,-500.0,0.00071232,120]
[325169852,1714547445171,-358.95,0.00071232,120]
[325169855,1714547445180,-500.0,0.00071232,120]
[325169858,1714547445193,-500.0,0.00071232,120]
[325169860,1714547445203,-500.0,0.00071232,120]
[325169863,1714547445213,-1108.05,0.00071232,120]
[325169865,1714547445222,-687.32,0.00071232,120]
[325169867,1714547445232,-744.54,0.00071232,120]
[325169869,1714547445242,-500.0,0.00071232,120]
[325169871,1714547445252,-3806.86,0.00071232,120]
[325169873,1714547445262,-232.58730175,0.00071232,120]
[325169875,1714547445271,-500.0,0.00071232,120]
[325169877,1714547445280,-1662.56,0.00071232,120]
[325169879,1714547445289,-656.99,0.00071232,120]
[325169881,1714547445299,-500.0,0.00071232,120]
[325169883,1714547445309,-8081.66,0.00071232,120]
[325169885,1714547445318,-500.0,0.00071232,120]
[325169887,1714547445327,-500.0,0.00071232,120]
[325169889,1714547445336,-500.0,0.00071232,120]
[325169891,1714547445345,-602.26,0.00071232,120]
[325169893,1714547445355,-205.11841049,0.00071232,60]
[325169895,1714547445364,-3110.46,0.00071232,120]
[325169897,1714547445374,-971.34,0.00071232,120]
[325169899,1714547445384,-500.0,0.00071232,120]
[325169901,1714547445395,-500.0,0.00071232,120]
[325169903,1714547445404,-630.90327538,0.00071232,120]
[325169905,1714547445413,-1007.33,0.00071232,120]
[325169907,1714547445424,-8317.68,0.00071232,120]
[325169909,1714547445434,-500.0,0.00071232,120]
[325169911,1714547445444,-500.0,0.00071232,120]
[325169913,1714547445454,-500.0,0.00071232,120]
[325169915,1714547445463,-22712.48,0.00071232,120]
[325169917,1714547445472,-500.0,0.00071232,60]
[325169919,1714547445481,-570.7,0.00071232,120]
[325169921,1714547445491,-500.0,0.00071232,120]
[325169923,1714547445500,-500.0,0.00071232,7]
[325169925,1714547445510,-1923.12,0.00071232,120]
[325169927,1714547445519,-3500.0,0.00071232,120]
[325169929,1714547445528,-500.0,0.00071232,120]
[325169931,1714547445538,-500.0,0.00071232,120]
[325169933,1714547445547,-500.0,0.00071232,120]
[325169935,1714547445557,-651.08,0.00071232,21]
[325169937,1714547445566,-18265.72,0.00071232,120]
[325169939,1714547445575,-5841.86,0.00071232,120]
[325169941,1714547445585,-1753.43,0.00071232,120]
[325169943,1714547445594,-500.0,0.00071232,120]
[325169945,1714547445608,-500.0,0.00071232,120]
[325169947,1714547445617,-13151.9,0.00071232,120]
[325169949,1714547445627,-500.0,0.00071232,120]
[325169951,1714547445636,-1876.83,0.00071232,120]
[325169953,1714547445647,-1000.0,0.00071699,120]
[325169955,1714547445657,-427.62947,0.00072125,2]
[325169957,1714547445667,-1299.03,0.00072601,120]
[325169959,1714547445676,-1000.0,0.00073041,120]
[325169961,1714547445687,-10000.0,0.0007321,120]
[325169963,1714547445696,-151.0,0.00073836,120]
[325169965,1714547445705,-427.62947,0.00073867,2]
[325169967,1714547445715,-500.0,0.00073971,120]
[325169969,1714547445725,-1356.77,0.00073971,120]
[325169971,1714547445735,-1010.74,0.00073971,120]
[325169973,1714547445744,-972.54,0.00073971,120]
[325169975,1714547445754,-500.0,0.00073971,120]
[325169977,1714547445763,-500.0,0.00073971,120]
[325169979,1714547445772,-500.0,0.00073971,120]
[325169981,1714547445782,-500.0,0.00073971,120]
[325169983,1714547445791,-471.33343592,0.00073971,120]
[325169985,1714547445801,-1299.03,0.00073971,120]
[325169987,1714547445810,-500.0,0.00073972,120]
[325169989,1714547445820,-500.0,0.00073972,120]
[325169991,1714547445829,-500.0,0.00073972,120]
[325169993,1714547445839,-198.33678899,0.00073972,120]
[325169995,1714547445848,-500.0,0.00073972,120]
[325169997,1714547445857,-500.0,0.00073972,120]
[325169999,1714547445867,-1719.12,0.00073972,120]
[325170001,1714547445877,-1653.85,0.00073972,120]
[325170003,1714547445887,-500.0,0.00073972,120]
[325170005,1714547445897,-500.0,0.00073972,120]
[325170007,1714547445908,-500.0,0.00073972,120]
[325170009,1714547445918,-500.0,0.00073972,120]
[325170011,1714547445927,-500.0,0.00073972,120]
[325170013,1714547445942,-500.0,0.00073972,120]
[325170015,1714547445952,-502.53659816,0.00073972,120]
[325170017,1714547445962,-500.0,0.00073972,120]
[325170019,1714547445972,-500.0,0.00073972,120]
[325170021,1714547445981,-500.0,0.00073972,120]
[325170023,1714547445991,-500.0,0.00073972,120]
[325170025,1714547446000,-1951.86,0.00073972,120]
[325170027,1714547446010,-1364.58,0.00073972,120]
[325170029,1714547446019,-1126.32,0.00073972,120]
[325170031,1714547446028,-583.53,0.00073972,120]
[325170033,1714547446038,-2851.46,0.00073972,2]
[325170035,1714547446048,-559.07,0.00073972,120]
[325170038,1714547446057,-2762.94,0.00073972,120]
[325170041,1714547446067,-500.0,0.00073972,120]
[325170044,1714547446076,-500.0,0.00073972,120]
[325170047,1714547446086,-500.0,0.00073972,120]
[325170050,1714547446095,-500.0,0.00073972,120]
[325170053,1714547446104,-1809.97,0.00073972,120]
[325170055,1714547446114,-500.0,0.00073972,120]
[325170058,1714547446123,-436.88166842,0.00073972,120]
[325170060,1714547446133,-500.0,0.00073972,120]
[325170062,1714547446142,-500.0,0.00073972,120]
[325170064,1714547446151,-500.0,0.00073972,120]
[325170066,1714547446160,-500.0,0.00073972,120]
[325170068,1714547446169,-1643.62,0.00073972,120]
[325170070,1714547446178,-500.0,0.00073972,120]
[325170072,1714547446191,-500.0,0.00073972,120]
[325170073,1714547446200,-977.05,0.00073972,120]
[325170075,1714547446209,-500.0,0.00073972,120]
[325170077,1714547446218,-876.53,0.00073972,120]
[325170079,1714547446227,-3386.05,0.00073972,120]
[325170081,1714547446236,-500.0,0.00073972,120]
[325170083,1714547446246,-500.0,0.00073972,120]
[325170085,1714547446255,-500.0,0.00073972,120]
[325170087,1714547446265,-395.05106432,0.00073972,120]
[325170089,1714547446274,-364.62103571,0.00073972,120]
[325170091,1714547446283,-1108.05,0.00073972,120]
[325170093,1714547446292,-687.32,0.00073972,120]
[325170095,1714547446301,-744.54,0.00073972,120]
[325170097,1714547446311,-500.0,0.00073972,120]
[325170099,1714547446321,-3806.86,0.00073972,120]
[325170101,1714547446331,-500.0,0.00073972,120]
[325170103,1714547446340,-1662.56,0.00073972,120]
[325170106,1714547446350,-656.99,0.00073972,120]
[325170108,1714547446360,-500.0,0.00073972,120]
[325170110,1714547446370,-8081.66,0.00073972,120]
[325170112,1714547446379,-500.0,0.00073972,120]
[325170114,1714547446388,-500.0,0.00073972,120]
[325170124,1714547446478,-500.0,0.00073972,120]
[325170126,1714547446488,-602.26,0.00073972,120]
[325170128,1714547446497,-3110.46,0.00073972,120]
[325170130,1714547446507,-971.34,0.00073972,120]
[325170132,1714547446517,-500.0,0.00073972,120]
[325170134,1714547446526,-500.0,0.00073972,120]
[325170136,1714547446536,-1007.33,0.00073972,120]
[325170138,1714547446545,-8317.68,0.00073972,120]
[325170140,1714547446554,-500.0,0.00073972,120]
[325170142,1714547446564,-500.0,0.00073972,120]
[325170144,1714547446574,-500.0,0.00073972,120]
[325170146,1714547446583,-22712.48,0.00073972,120]
[325170148,1714547446592,-500.0,0.00073972,60]
[325170150,1714547446604,-570.7,0.00073972,120]
[325170152,1714547446614,-500.0,0.00073972,120]
[325170154,1714547446623,-500.0,0.00073972,7]
[325170156,1714547446633,-1923.12,0.00073972,120]
[325170158,1714547446645,-500.0,0.00073972,120]
[325170160,1714547446654,-500.0,0.00073972,120]
[325170162,1714547446663,-500.0,0.00073972,120]
[325170164,1714547446672,-651.08,0.00073972,21]
[325170166,1714547446682,-18265.72,0.00073972,120]
[325170168,1714547446696,-5841.86,0.00073972,120]
[325170170,1714547446705,-1753.43,0.00073972,120]
[325170172,1714547446714,-500.0,0.00073972,120]
[325170174,1714547446724,-500.0,0.00073972,120]
[325170176,1714547446733,-13151.9,0.00073972,120]
[325170178,1714547446743,-500.0,0.00073972,120]
[325170180,1714547446752,-1876.83,0.00073972,120]
[325170182,1714547446761,-1000.0,0.0007466,120]
[325170184,1714547446771,-1299.03,0.00075341,120]
[325170186,1714547446780,-427.62948,0.00075609,2]
[325170188,1714547446789,-1000.0,0.00076162,120]
[325170190,1714547446798,-999.0,0.0007671,120]
[325170192,1714547446808,-500.0,0.00076711,120]
[325170194,1714547446819,-1356.77,0.00076711,120]
[325170196,1714547446829,-1010.74,0.00076711,120]
[325170198,1714547446838,-972.54,0.00076711,120]
[325170200,1714547446848,-500.0,0.00076711,120]
[325170202,1714547446857,-386.49566674,0.00076711,120]
[325170204,1714547446867,-500.0,0.00076711,120]
[325170206,1714547446876,-591.79877432,0.00076711,120]
[325170208,1714547446886,-999.0,0.00076711,120]
[325170210,1714547446895,-999.0,0.00076711,120]
[325170212,1714547446904,-999.0,0.00076711,120]
[325170214,1714547446914,-999.0,0.00076711,120]
[325170216,1714547446923,-1299.03,0.00076711,120]
[325170218,1714547446932,-500.0,0.00076712,120]
[325170220,1714547446946,-500.0,0.00076712,120]
[325170222,1714547446956,-500.0,0.00076712,120]
[325170224,1714547446965,-500.0,0.00076712,120]
[325170226,1714547446975,-500.0,0.00076712,120]
[325170228,1714547446984,-397.15623747,0.00076712,120]
[325170229,1714547446993,-500.0,0.00076712,120]
[325170232,1714547447003,-500.0,0.00076712,120]
[325170233,1714547447012,-500.0,0.00076712,120]
[325170235,1714547447022,-500.0,0.00076712,120]
[325170237,1714547447032,-743.3,0.00076712,2]
[325170239,1714547447041,-500.0,0.00076712,120]
[325170241,1714547447051,-500.0,0.00076712,120]
[325170243,1714547447061,-500.0,0.00076712,120]
[325170245,1714547447070,-500.0,0.00076712,120]
[325170247,1714547447079,-1774.17,0.00076712,120]
[325170250,1714547447089,-500.0,0.00076712,120]
[325170251,1714547447098,-500.0,0.00076712,120]
[325170253,1714547447107,-500.0,0.00076712,120]
[325170255,1714547447116,-1040.38,0.00076712,120]
[325170257,1714547447126,-500.0,0.00076712,120]
[325170259,1714547447135,-500.0,0.00076712,120]
[325170261,1714547447144,-500.0,0.00076712,120]
[325170263,1714547447153,-500.0,0.00076712,120]
[325170265,1714547447162,-500.0,0.00076712,120]
[325170267,1714547447172,-500.0,0.00076712,120]
[325170269,1714547447181,-500.0,0.00076712,120]
[325170272,1714547447196,-500.0,0.00076712,120]
[325170274,1714547447206,-1719.12,0.00076712,120]
[325170276,1714547447215,-1653.85,0.00076712,120]
[325170277,1714547447227,-500.0,0.00076712,120]
[325170280,1714547447238,-500.0,0.00076712,120]
[325170282,1714547447248,-500.0,0.00076712,120]
[325170284,1714547447259,-500.0,0.00076712,120]
[325170286,1714547447269,-500.0,0.00076712,120]
[325170288,1714547447280,-500.0,0.00076712,120]
[325170289,1714547447290,-435.64554752,0.00076712,120]
[325170291,1714547447302,-500.0,0.00076712,120]
[325170293,1714547447312,-500.0,0.00076712,120]
[325170295,1714547447323,-500.0,0.00076712,120]
[325170297,1714547447334,-1951.86,0.00076712,120]
[325170299,1714547447344,-1364.58,0.00076712,120]
[325170301,1714547447353,-1126.32,0.00076712,120]
[325170303,1714547447363,-583.53,0.00076712,120]
[325170305,1714547447373,-2851.46,0.00076712,2]
[325170307,1714547447383,-559.07,0.00076712,120]
[325170309,1714547447392,-2762.94,0.00076712,120]
[325170311,1714547447401,-500.0,0.00076712,120]
[325170313,1714547447410,-500.0,0.00076712,120]
[325170315,1714547447420,-500.0,0.00076712,120]
[325170318,1714547447429,-500.0,0.00076712,120]
[325170320,1714547447443,-1809.97,0.00076712,120]
[325170321,1714547447453,-500.0,0.00076712,120]
[325170323,1714547447462,-500.0,0.00076712,120]
[325170326,1714547447472,-500.0,0.00076712,120]
[325170327,1714547447481,-500.0,0.00076712,120]
[325170329,1714547447490,-500.0,0.00076712,120]
[325170331,1714547447499,-1643.62,0.00076712,120]
[325170333,1714547447509,-500.0,0.00076712,120]
[325170335,1714547447518,-500.0,0.00076712,120]
[325170336,1714547447527,-977.05,0.00076712,120]
[325170338,1714547447536,-500.0,0.00076712,120]
[325170340,1714547447546,-876.53,0.00076712,120]
[325170342,1714547447555,-3386.05,0.00076712,120]
[325170344,1714547447564,-500.0,0.00076712,120]
[325170345,1714547447573,-500.0,0.00076712,120]
[325170347,1714547447582,-500.0,0.00076712,120]
[325170349,1714547447591,-1108.05,0.00076712,120]
[325170351,1714547447605,-687.32,0.00076712,120]
[325170353,1714547447614,-744.54,0.00076712,120]
[325170355,1714547447623,-500.0,0.00076712,120]
[325170357,1714547447633,-3806.86,0.00076712,120]
[325170359,1714547447643,-500.0,0.00076712,120]
[325170361,1714547447653,-1662.56,0.00076712,120]
[325170363,1714547447662,-656.99,0.00076712,120]
[325170365,1714547447672,-500.0,0.00076712,120]
[325170367,1714547447682,-8081.66,0.00076712,120]
[325170369,1714547447695,-500.0,0.00076712,120]
[325170371,1714547447704,-500.0,0.00076712,120]
[325170373,1714547447714,-500.0,0.00076712,120]
[325170375,1714547447724,-151.0,0.00076712,120]
[325170376,1714547447734,-602.26,0.00076712,120]
[325170378,1714547447743,-3110.46,0.00076712,120]
[325170380,1714547447753,-151.0,0.00076712,120]
[325170382,1714547447762,-971.34,0.00076712,120]
[325170384,1714547447772,-4188.704354,0.00076712,120]
[325170386,1714547447782,-500.0,0.00076712,120]
[325170388,1714547447791,-151.0,0.00076712,120]
[325170390,1714547447800,-430.173155,0.00076712,120]
[325170392,1714547447809,-500.0,0.00076712,120]
[325170394,1714547447819,-4188.704354,0.00076712,120]
[325170396,1714547447829,-430.173155,0.00076712,120]
[325170398,1714547447840,-1007.33,0.00076712,120]
[325170400,1714547447850,-3940.930765,0.00076712,120]
[325170402,1714547447861,-3940.930765,0.00076712,120]
[325170404,1714547447871,-8317.68,0.00076712,120]
[325170405,1714547447880,-500.0,0.00076712,120]
[325170406,1714547447890,-231.32035,0.00076712,120]
[325170407,1714547447900,-231.32035,0.00076712,120]
[325170408,1714547447910,-620.94380992,0.00076712,120]
[325170409,1714547447919,-500.0,0.00076712,120]
[325170410,1714547447929,-22712.48,0.00076712,120]
[325170411,1714547447942,-151.0,0.00076712,120]
[325170412,1714547447951,-500.0,0.00076712,60]
[325170413,1714547447961,-151.0,0.00076712,120]
[325170414,1714547447970,-570.7,0.00076712,120]
[325170415,1714547447979,-500.0,0.00076712,120]
[325170416,1714547447989,-206.133019,0.00076712,120]
[325170417,1714547447997,-206.133019,0.00076712,120]
[325170418,1714547448007,-500.0,0.00076712,7]
[325170419,1714547448017,-1953.706145,0.00076712,120]
[325170420,1714547448026,-1953.706145,0.00076712,120]
[325170421,1714547448036,-253.957297,0.00076712,120]
[325170422,1714547448045,-253.957297,0.00076712,120]
[325170423,1714547448055,-4375.0,0.00076712,120]
[325170425,1714547448064,-1923.12,0.00076712,120]
[325170427,1714547448074,-1645.454755,0.00076712,120]
[325170428,1714547448084,-1645.454755,0.00076712,120]
[325170430,1714547448093,-500.0,0.00076712,120]
[325170432,1714547448102,-500.0,0.00076712,120]
[325170434,1714547448111,-703.289324,0.00076712,120]
[325170436,1714547448120,-703.289324,0.00076712,120]
[325170438,1714547448129,-500.0,0.00076712,120]
[325170440,1714547448138,-651.08,0.00076712,21]
[325170442,1714547448147,-18265.72,0.00076712,120]
[325170444,1714547448156,-224.114001,0.00076712,120]
[325170445,1714547448165,-335.503316,0.00076712,120]
[325170447,1714547448174,-5841.86,0.00076712,120]
[325170449,1714547448183,-335.503316,0.00076712,120]
[325170451,1714547448197,-1753.43,0.00076712,120]
[325170453,1714547448207,-181.683047,0.00076712,120]
[325170455,1714547448215,-500.0,0.00076712,120]
[325170457,1714547448225,-517.69,0.00076712,120]
[325170459,1714547448234,-181.683047,0.00076712,120]
[325170461,1714547448244,-248.795677,0.00076712,120]
[325170463,1714547448253,-13151.9,0.00076712,120]
[325170473,1714547448336,-500.0,0.00076712,120]
[325170477,1714547448346,-248.795677,0.00076712,120]
[325170481,1714547448355,-151.0,0.00076712,120]
[325170485,1714547448365,-151.0,0.00076712,120]
[325170488,1714547448374,-1876.83,0.00076712,120]
[325170492,1714547448383,-10000.0,0.00076944,120]
[325170495,1714547448392,-151.0,0.00077041,120]
[325170499,1714547448402,-427.62947,0.00077351,2]
[325170504,1714547448412,-1000.0,0.0007749,120]
[325170507,1714547448421,-1299.03,0.00078081,120]
[325170510,1714547448431,-1000.0,0.00078445,120]
[325170513,1714547448444,-150.70305953,0.00078489,120]
[325170515,1714547448453,-163.521656,0.00078904,120]
[325170518,1714547448462,-427.62948,0.00079093,2]
[325170521,1714547448471,-500.0,0.0007945,120]
[325170524,1714547448481,-1356.77,0.0007945,120]
[325170527,1714547448490,-1010.74,0.0007945,120]
[325170530,1714547448499,-972.54,0.0007945,120]
[325170533,1714547448509,-500.0,0.0007945,120]
[325170536,1714547448518,-500.0,0.0007945,120]
[325170538,1714547448527,-1299.03,0.0007945,120]
[325170540,1714547448537,-500.0,0.00079452,120]
[325170542,1714547448546,-500.0,0.00079452,120]
[325170544,1714547448555,-500.0,0.00079452,120]
[325170546,1714547448564,-500.0,0.00079452,120]
[325170548,1714547448574,-500.0,0.00079452,120]
[325170550,1714547448583,-1719.12,0.00079452,120]
[325170552,1714547448592,-1653.85,0.00079452,120]
[325170553,1714547448604,-384.80380575,0.00079452,120]
[325170555,1714547448613,-500.0,0.00079452,120]
[325170557,1714547448622,-500.0,0.00079452,120]
[325170559,1714547448631,-500.0,0.00079452,120]
[325170561,1714547448644,-500.0,0.00079452,120]
[325170563,1714547448654,-500.0,0.00079452,120]
[325170568,1714547448663,-500.0,0.00079452,120]
[325170571,1714547448673,-500.0,0.00079452,120]
[325170574,1714547448683,-500.0,0.00079452,120]
[325170577,1714547448700,-1951.86,0.00079452,120]
[325170580,1714547448710,-1364.58,0.00079452,120]
[325170584,1714547448721,-1126.32,0.00079452,120]
[325170586,1714547448732,-583.53,0.00079452,120]
[325170588,1714547448741,-2851.46,0.00079452,2]
[325170590,1714547448751,-559.07,0.00079452,120]
[325170592,1714547448760,-2762.94,0.00079452,120]
[325170594,1714547448770,-500.0,0.00079452,120]
[325170596,1714547448779,-500.0,0.00079452,120]
[325170598,1714547448787,-500.0,0.00079452,120]
[325170600,1714547448797,-500.0,0.00079452,120]
[325170602,1714547448806,-1809.97,0.00079452,120]
[325170604,1714547448816,-570.33634232,0.00079452,120]
[325170605,1714547448825,-500.0,0.00079452,120]
[325170607,1714547448834,-500.0,0.00079452,120]
[325170609,1714547448844,-500.0,0.00079452,120]
[325170611,1714547448853,-500.0,0.00079452,120]
[325170613,1714547448862,-1643.62,0.00079452,120]
[325170615,1714547448872,-500.0,0.00079452,120]
[325170617,1714547448881,-500.0,0.00079452,120]
[325170619,1714547448891,-977.05,0.00079452,120]
[325170621,1714547448900,-296.1034087,0.00079452,120]
[325170623,1714547448910,-876.53,0.00079452,120]
[325170625,1714547448919,-3386.05,0.00079452,120]
[325170627,1714547448928,-500.0,0.00079452,120]
[325170629,1714547448939,-500.0,0.00079452,120]
[325170631,1714547448948,-512.90642507,0.00079452,120]
[325170633,1714547448958,-1108.05,0.00079452,120]
[325170635,1714547448967,-687.32,0.00079452,120]
[325170637,1714547448976,-744.54,0.00079452,120]
[325170639,1714547448986,-500.0,0.00079452,120]
[325170641,1714547448996,-3806.86,0.00079452,120]
[325170643,1714547449006,-500.0,0.00079452,120]
[325170645,1714547449015,-1662.56,0.00079452,120]
[325170647,1714547449025,-656.99,0.00079452,120]
[325170649,1714547449034,-500.0,0.00079452,120]
[325170651,1714547449044,-8081.66,0.00079452,120]
[325170653,1714547449053,-152.93572311,0.00079452,120]
[325170655,1714547449063,-500.0,0.00079452,120]
[325170657,1714547449073,-500.0,0.00079452,120]
[325170659,1714547449083,-602.26,0.00079452,120]
[325170661,1714547449093,-3110.46,0.00079452,120]
[325170663,1714547449104,-971.34,0.00079452,120]
[325170665,1714547449114,-359.71166466,0.00079452,120]
[325170667,1714547449123,-500.0,0.00079452,120]
[325170669,1714547449134,-1007.33,0.00079452,120]
[325170671,1714547449144,-8317.68,0.00079452,120]
[325170673,1714547449154,-500.0,0.00079452,120]
[325170676,1714547449163,-500.0,0.00079452,120]
[325170679,1714547449172,-22712.48,0.00079452,120]
[325170681,1714547449182,-500.0,0.00079452,60]